bitfinex/quotes_BTCUSD_20251004
["timestamp","ask_amount","ask_price","bid_price","bid_amount"]
[1759565335111,0.0001092,122450.0,122440.0,1.41427935]
[1759565336126,0.0001092,122450.0,122440.0,1.09947935]
[1759565336302,0.0001092,122450.0,122440.0,1.41427935]
[1759565336716,0.0001092,122450.0,122440.0,1.32614935]
[1759565336920,0.0001092,122450.0,122440.0,1.41102935]
[1759565337539,0.0001092,122450.0,122440.0,1.41427935]
[1759565338621,0.0001092,122450.0,122440.0,1.09947935]
[1759565338777,0.0001092,122450.0,122440.0,1.41427935]
[1759565341045,0.0001092,122450.0,122440.0,1.34117531]
[1759565343934,0.0001092,122450.0,122440.0,1.364972]
[1759565344343,9.98e-06,122450.0,122440.0,1.364972]
[1759565349256,0.00214998,122450.0,122440.0,1.050172]
[1759565349470,0.00214998,122450.0,122440.0,1.4089621]
[1759565349471,0.00536998,122450.0,122440.0,1.4089621]
[1759565351510,9.98e-06,122450.0,122440.0,1.4111021]
[1759565351718,9.98e-06,122450.0,122440.0,1.4141421]
[1759565352367,9.98e-06,122450.0,122440.0,1.34093531]
[1759565353043,9.98e-06,122450.0,122440.0,1.02617531]
[1759565353269,9.98e-06,122450.0,122440.0,1.68049531]
[1759565354341,0.0004,122460.0,122450.0,0.16333197]
[1759565354561,0.0004,122460.0,122450.0,0.46649665]
[1759565354776,0.00254,122460.0,122450.0,0.46649665]
[1759565354984,0.00274334,122460.0,122450.0,0.46863665]
[1759565356718,0.00274334,122460.0,122450.0,0.47063665]
[1759565360483,0.00274334,122460.0,122450.0,0.07734468]
[1759565360668,0.00596334,122460.0,122450.0,0.55333665]
[1759565360874,0.00596334,122460.0,122450.0,0.23853665]
[1759565361102,0.00596334,122460.0,122450.0,0.55333665]
[1759565362259,0.00596334,122460.0,122450.0,0.46849665]
[1759565362453,0.00596334,122460.0,122450.0,0.55337665]
[1759565363478,0.00274334,122460.0,122450.0,0.55551665]
[1759565363681,0.00060334,122460.0,122450.0,0.55855665]
[1759565364097,0.00060334,122460.0,122450.0,1.06918665]
[1759565387224,0.00060334,122460.0,122450.0,1.06795955]
[1759565389510,0.00060334,122460.0,122450.0,1.40795955]
[1759565389692,0.00060334,122460.0,122450.0,1.33598197]
[1759565390863,0.00060334,122460.0,122450.0,1.95417281]
[1759565392500,5.159e-05,122460.0,122450.0,1.95417281]
[1759565395119,0.00010072,122460.0,122450.0,1.95417281]
[1759565402224,0.00010072,122460.0,122450.0,1.95458278]
[1759565402422,7.75e-06,122460.0,122450.0,1.95458278]
[1759565408641,7.75e-06,122460.0,122450.0,2.05718741]
[1759565411618,7.75e-06,122460.0,122450.0,6.67930641]
[1759565412498,0.0004,122470.0,122460.0,0.50331863]
[1759565412684,0.0004,122470.0,122460.0,1.31994597]
[1759565412897,0.0004,122470.0,122460.0,1.24881863]
[1759565414438,0.0004,122470.0,122460.0,1.58829863]
[1759565414623,0.0004,122470.0,122460.0,1.67313863]
[1759565415321,0.0004,122470.0,122460.0,1.67513863]
[1759565416728,0.0004,122470.0,122460.0,1.67313863]
[1759565416932,0.0004,122470.0,122460.0,1.67813863]
[1759565417876,0.0004,122470.0,122460.0,1.68013863]
[1759565418318,0.00060333,122470.0,122460.0,1.68013863]
[1759565420702,0.00060333,122470.0,122460.0,1.78274326]
[1759565422609,3.894e-05,122470.0,122460.0,1.78274326]
[1759565426043,3.894e-05,122470.0,122460.0,1.59080961]
[1759565426285,3.894e-05,122470.0,122460.0,1.48820498]
[1759565426499,3.894e-05,122470.0,122460.0,1.65152361]
[1759565434032,3.894e-05,122470.0,122460.0,6.37054673]
[1759565435872,0.0004,122480.0,122470.0,0.16330529]
[1759565436097,0.0004,122480.0,122470.0,1.31997568]
[1759565436314,0.0004,122480.0,122470.0,1.32203568]
[1759565436526,0.0006033,122480.0,122470.0,1.32203568]
[1759565437386,0.0006033,122480.0,122470.0,1.32403568]
[1759565438497,0.00109468,122480.0,122470.0,1.32403568]
[1759565440421,0.00109468,122480.0,122470.0,1.25091529]
[1759565444517,0.00109468,122480.0,122470.0,1.67519529]
[1759565445179,0.00109468,122480.0,122470.0,1.59035529]
[1759565445349,0.00109468,122480.0,122470.0,5.75646825]
[1759565445590,7.919e-05,122480.0,122470.0,5.85907288]
[1759565445779,0.00209919,122480.0,122470.0,6.39683892]
[1759565446044,0.0004,122500.0,122490.0,0.34]
[1759565446288,0.00044911,122500.0,122490.0,0.80633724]
[1759565446502,0.00246911,122500.0,122490.0,0.57641724]
[1759565446723,0.00246911,122500.0,122490.0,0.89121724]
[1759565447172,0.00246911,122500.0,122490.0,0.89321724]
[1759565447604,0.10189517,122500.0,122490.0,0.06049309]
[1759565447819,0.10189517,122500.0,122490.0,0.2758447]
[1759565448035,0.26771047,122500.0,122490.0,0.23196]
[1759565448271,0.25140647,122500.0,122490.0,0.23704]
[1759565448478,0.25140647,122500.0,122490.0,0.05088593]
[1759565448683,0.25140647,122500.0,122490.0,0.36076593]
[1759565448896,0.25140647,122500.0,122490.0,0.04588593]
[1759565449113,0.25140647,122500.0,122490.0,0.36076593]
[1759565449320,0.25140647,122500.0,122490.0,0.35876593]
[1759565449945,0.25440647,122500.0,122490.0,0.35876593]
[1759565450189,0.25440647,122500.0,122490.0,0.31488]
[1759565450616,0.25440647,122500.0,122480.0,0.05849309]
[1759565450841,0.17128441,122500.0,122490.0,0.31488]
[1759565451691,0.00546911,122500.0,122490.0,0.47815863]
[1759565451912,0.17169411,122500.0,122490.0,0.12872606]
[1759565452180,0.17169093,122500.0,122490.0,0.35884606]
[1759565453638,0.17169093,122500.0,122490.0,0.04388606]
[1759565453849,0.09154769,122500.0,122490.0,0.25954009]
[1759565454051,0.08899769,122500.0,122490.0,0.255233]
[1759565454198,0.08899769,122500.0,122490.0,0.47700472]
[1759565454396,0.10530169,122500.0,122490.0,0.47700472]
[1759565454652,0.08899769,122500.0,122490.0,0.47700472]
[1759565454870,0.00385563,122500.0,122490.0,0.82218472]
[1759565455013,0.00385563,122500.0,122490.0,1.27424163]
[1759565455988,0.00583563,122500.0,122490.0,0.535503]
[1759565456195,0.00583563,122500.0,122490.0,0.79939782]
[1759565456196,0.27111699,122500.0,122490.0,0.79939782]
[1759565456399,0.25481299,122500.0,122490.0,0.56903782]
[1759565456821,0.25481299,122500.0,122490.0,0.88427782]
[1759565457319,0.25481299,122500.0,122490.0,0.82579]
[1759565458456,0.25481299,122500.0,122490.0,0.51055]
[1759565458643,0.25481299,122500.0,122490.0,0.82579]
[1759565458904,0.25481299,122500.0,122490.0,0.51055]
[1759565458905,0.25222299,122500.0,122490.0,0.51055]
[1759565459117,0.25481299,122500.0,122490.0,0.82579]
[1759565460029,0.25222299,122500.0,122490.0,0.99120863]
[1759565460291,0.25222299,122500.0,122490.0,0.99417863]
[1759565460710,0.25481299,122500.0,122490.0,0.51055]
[1759565460922,0.25481299,122500.0,122490.0,0.8697079]
[1759565461989,0.25481299,122500.0,122490.0,0.5544279]
[1759565462143,0.25481299,122500.0,122490.0,0.8698279]
[1759565463791,0.25481299,122500.0,122490.0,0.5544279]
[1759565464040,0.68196819,122500.0,122490.0,0.7849879]
[1759565464251,0.68196819,122500.0,122490.0,0.5544279]
[1759565464252,1.19333746,122500.0,122490.0,0.5544279]
[1759565464469,0.25481299,122500.0,122490.0,0.74119]
[1759565464989,0.71212009,122500.0,122490.0,0.74119]
[1759565465213,0.70912009,122500.0,122490.0,0.74119]
[1759565465640,0.80233416,122500.0,122490.0,0.74119]
[1759565465869,0.26081299,122500.0,122490.0,0.74119]
[1759565466121,0.29096489,122500.0,122490.0,0.74127]
[1759565466342,0.71812009,122500.0,122490.0,0.74127]
[1759565468673,0.29096489,122500.0,122490.0,0.74127]
[1759565468887,0.71812009,122500.0,122490.0,0.74127]
[1759565469477,0.77855485,122500.0,122490.0,0.74127]
[1759565469678,0.74840295,122500.0,122490.0,0.74127]
[1759565471101,0.8498812,122500.0,122490.0,0.51055]
[1759565471300,0.87438797,122500.0,122490.0,0.74147]
[1759565472370,0.80306162,122500.0,122490.0,0.74147]
[1759565478318,0.81118999,122500.0,122490.0,0.74147]
[1759565480245,0.80306162,122500.0,122490.0,0.74147]
[1759565484005,0.31667775,122500.0,122490.0,0.74658]
[1759565484796,0.25624299,122500.0,122490.0,0.74658]
[1759565486423,0.25624299,122500.0,122490.0,0.7904579]
[1759565487491,0.25624299,122500.0,122490.0,0.7874879]
[1759565488223,0.25624299,122500.0,122490.0,0.7904579]
[1759565488435,0.25624299,122500.0,122490.0,0.7874879]
[1759565488910,0.25624299,122500.0,122490.0,0.7853479]
[1759565489056,0.25822299,122500.0,122490.0,0.74147]
[1759565489257,0.25624299,122500.0,122490.0,0.7853479]
[1759565490063,0.25822299,122500.0,122490.0,0.7853479]
[1759565490472,0.25624299,122500.0,122490.0,0.7873979]
[1759565490711,0.25624299,122500.0,122490.0,0.7853479]
[1759565490919,0.25822299,122500.0,122490.0,0.7853479]
[1759565491075,0.26081299,122500.0,122490.0,0.7853479]
[1759565491301,0.26081299,122500.0,122490.0,0.74151]
[1759565491512,0.25822299,122500.0,122490.0,0.74151]
[1759565491719,0.25624299,122500.0,122490.0,0.74657]
[1759565492433,0.25624299,122500.0,122490.0,0.7904479]
[1759565495903,0.68796819,122500.0,122490.0,0.74151]
[1759565496116,0.68796819,122500.0,122490.0,0.51055]
[1759565496349,0.68796819,122500.0,122490.0,0.74147]
[1759565496793,0.68537819,122500.0,122490.0,0.74147]
[1759565496991,0.25822299,122500.0,122490.0,0.74147]
[1759565497201,0.68537819,122500.0,122490.0,0.74147]
[1759565497574,0.68796819,122500.0,122490.0,0.74147]
[1759565497808,0.25822299,122500.0,122490.0,0.74147]
[1759565498038,0.25624299,122500.0,122490.0,0.7904079]
[1759565499516,0.25822299,122500.0,122490.0,0.7873979]
[1759565500157,0.25822299,122500.0,122490.0,0.5544279]
[1759565500386,0.26081299,122500.0,122490.0,0.7853079]
[1759565500514,0.25624299,122500.0,122490.0,0.7873579]
[1759565500739,0.25624299,122500.0,122490.0,0.7903679]
[1759565501161,0.25624299,122500.0,122490.0,0.7873579]
[1759565501367,0.25823299,122500.0,122490.0,0.7853079]
[1759565503797,0.25624299,122500.0,122490.0,0.7873579]
[1759565503943,0.25624299,122500.0,122490.0,0.7903679]
[1759565505134,0.26081299,122500.0,122490.0,0.5544279]
[1759565505321,0.25624299,122500.0,122490.0,0.74645]
[1759565505547,0.25624299,122500.0,122490.0,0.7903279]
[1759565506114,0.09297769,122500.0,122490.0,0.95360653]
[1759565506315,0.25624299,122500.0,122490.0,0.90972863]
[1759565506931,0.09297769,122500.0,122490.0,0.90972863]
[1759565507161,0.09297769,122500.0,122490.0,0.96821645]
[1759565507365,0.08397769,122500.0,122490.0,0.96821645]
[1759565507565,0.08697769,122500.0,122490.0,0.96821645]
[1759565508328,0.25024299,122500.0,122490.0,0.96821645]
[1759565509267,0.25024299,122500.0,122490.0,0.97640917]
[1759565509492,0.25024299,122500.0,122490.0,0.96821645]
[1759565510709,0.25024299,122500.0,122490.0,0.97638983]
[1759565510894,0.25024299,122500.0,122490.0,0.96821645]
[1759565511104,0.25024299,122500.0,122490.0,0.57409782]
[1759565511308,0.25024299,122500.0,122490.0,0.88977782]
[1759565511441,0.25024299,122500.0,122490.0,0.88973782]
[1759565512178,0.08697769,122500.0,122490.0,1.39301645]
[1759565514063,0.08697769,122500.0,122490.0,1.40123565]
[1759565515938,0.00385563,122500.0,122490.0,1.40123565]
[1759565516927,0.00385563,122500.0,122490.0,1.39297645]
[1759565517558,0.00385563,122500.0,122490.0,1.07737645]
[1759565517876,0.00385563,122500.0,122490.0,1.30821645]
[1759565518079,0.00385563,122500.0,122490.0,1.39305645]
[1759565519316,0.00385563,122500.0,122490.0,1.30821645]
[1759565519480,0.00385563,122500.0,122490.0,1.39305645]
[1759565527749,0.00385563,122500.0,122490.0,1.40770724]
[1759565528945,0.00085563,122500.0,122490.0,1.40770724]
[1759565529637,0.00085563,122500.0,122490.0,1.41270724]
[1759565529794,0.00085563,122500.0,122490.0,1.41770724]
[1759565533143,0.00085563,122500.0,122490.0,1.42097319]
[1759565537133,0.00085563,122500.0,122490.0,1.33597319]
[1759565537341,0.00085563,122500.0,122490.0,1.76021319]
[1759565537747,0.00085563,122500.0,122490.0,1.10529319]
[1759565537953,0.00085563,122500.0,122490.0,1.76021319]
[1759565538163,0.00085563,122500.0,122490.0,1.75694724]
[1759565538790,0.00085563,122500.0,122490.0,1.10202724]
[1759565538996,0.00085563,122500.0,122490.0,1.75694724]
[1759565539204,0.00085563,122500.0,122490.0,1.78157531]
[1759565539818,0.00085563,122500.0,122490.0,1.78153531]
[1759565540193,0.00085563,122500.0,122490.0,1.12665531]
[1759565540393,0.00085563,122500.0,122490.0,1.69669531]
[1759565540593,0.00085563,122500.0,122490.0,1.78153531]
[1759565540809,0.00085563,122500.0,122490.0,1.12665531]
[1759565541018,0.00085563,122500.0,122490.0,1.78153531]
[1759565543906,0.00085563,122500.0,122490.0,1.78149531]
[1759565544111,5.519e-05,122500.0,122490.0,6.51688827]
[1759565544328,5.519e-05,122500.0,122490.0,6.57063726]
[1759565552192,5.519e-05,122500.0,122490.0,6.54600919]
[1759565554323,3.58e-06,122500.0,122490.0,6.54600919]
[1759565562161,0.0004,122510.0,122500.0,0.1934172]
[1759565562371,0.0004,122510.0,122500.0,5.66201377]
[1759565562576,0.0004,122510.0,122500.0,6.08821377]
[1759565562802,0.0006032,122510.0,122500.0,6.08821377]
[1759565562984,0.0006032,122510.0,122500.0,6.09147934]
[1759565563127,0.0006032,122510.0,122500.0,6.1746014]
[1759565563333,0.0006032,122510.0,122500.0,5.5198814]
[1759565563563,0.0006032,122510.0,122500.0,6.1795614]
[1759565564242,3.665e-05,122510.0,122500.0,6.5195614]
[1759565564445,3.665e-05,122510.0,122500.0,5.8648814]
[1759565564658,3.665e-05,122510.0,122500.0,6.5196014]
[1759565565874,3.665e-05,122510.0,122500.0,5.8648814]
[1759565566074,3.665e-05,122510.0,122500.0,6.5196014]
[1759565568102,3.665e-05,122510.0,122500.0,6.3563361]
[1759565568262,3.665e-05,122510.0,122500.0,6.31902387]
[1759565568627,3.665e-05,122510.0,122500.0,6.48228917]
[1759565572542,3.665e-05,122510.0,122500.0,5.82756917]
[1759565572744,3.665e-05,122510.0,122500.0,6.48224917]
[1759565573192,3.665e-05,122510.0,122500.0,6.48220917]
[1759565573395,3.665e-05,122510.0,122500.0,1.86009017]
[1759565574295,0.00201665,122510.0,122500.0,1.09509886]
[1759565574512,3.665e-05,122510.0,122500.0,1.68180087]
[1759565574740,3.665e-05,122510.0,122500.0,1.68221068]
[1759565576882,3.665e-05,122510.0,122500.0,1.25801068]
[1759565577079,3.665e-05,122510.0,122500.0,1.68221068]
[1759565578157,0.0004,122520.0,122510.0,0.16325197]
[1759565578394,0.0004,122520.0,122510.0,0.97727996]
[1759565578554,0.0004,122520.0,122510.0,0.98237996]
[1759565578926,0.0004,122520.0,122510.0,1.00687306]
[1759565579654,0.0054,122520.0,122510.0,1.00687306]
[1759565581848,0.0054,122520.0,122510.0,0.93383507]
[1759565583742,0.0056032,122520.0,122510.0,0.93383507]
[1759565587678,0.0056032,122520.0,122510.0,5.69768607]
[1759565588335,0.00034836,122520.0,122510.0,5.69768607]
[1759565590183,0.00034836,122520.0,122510.0,5.46720607]
[1759565590354,0.00034836,122520.0,122510.0,6.22401364]
[1759565590869,0.00034836,122520.0,122510.0,5.56953364]
[1759565591075,0.00232836,122520.0,122510.0,0.80058264]
[1759565591511,0.00232836,122520.0,122510.0,1.11574264]
[1759565591743,0.00034836,122520.0,122510.0,1.01856507]
[1759565591965,0.00232836,122520.0,122510.0,0.70029507]
[1759565592182,0.00491836,122520.0,122510.0,1.08656652]
[1759565592396,0.00232836,122520.0,122510.0,1.08656652]
[1759565592647,0.00034836,122520.0,122510.0,1.09171652]
[1759565594325,0.00034836,122520.0,122510.0,1.00691652]
[1759565594538,0.00034836,122520.0,122510.0,1.09171652]
[1759565594995,0.00034836,122520.0,122510.0,1.01860507]
[1759565595196,0.00034836,122520.0,122510.0,1.09171251]
[1759565595543,0.00034836,122520.0,122510.0,1.01860507]
[1759565596686,0.00034836,122520.0,122510.0,1.12093264]
[1759565598296,2.212e-05,122520.0,122510.0,1.12093264]
[1759565600839,7.121e-05,122520.0,122510.0,1.12093264]
[1759565608383,4.51e-06,122520.0,122510.0,1.12093264]
[1759565612193,4.51e-06,122520.0,122510.0,1.12085264]
[1759565618421,0.0004,122530.0,122520.0,0.50323865]
[1759565618638,0.0004,122530.0,122520.0,0.8096514]
[1759565618847,0.0004,122530.0,122520.0,0.8117114]
[1759565619321,0.0004,122530.0,122520.0,0.83620232]
[1759565619755,0.0034,122530.0,122520.0,0.83620232]
[1759565620076,0.00538,122530.0,122520.0,0.83315232]
[1759565620928,0.00538,122530.0,122520.0,0.83620232]
[1759565621686,0.0034,122530.0,122520.0,0.83620232]
[1759565622108,0.0034,122530.0,122520.0,1.34669232]
[1759565622526,0.00538,122530.0,122520.0,1.34364232]
[1759565623005,0.0034,122530.0,122520.0,1.34669232]
[1759565623987,0.00360317,122530.0,122520.0,1.34669232]
[1759565629944,0.00559317,122530.0,122520.0,1.34364232]
[1759565631791,0.00559317,122530.0,122520.0,1.42630232]
[1759565633651,0.00559317,122530.0,122520.0,1.42836232]
[1759565635582,0.00559317,122530.0,122520.0,1.42630232]
[1759565636621,0.00559317,122530.0,122520.0,1.42836232]
[1759565637229,0.00559317,122530.0,122520.0,1.42630232]
[1759565638434,0.00559317,122530.0,122520.0,1.42836232]
[1759565639384,0.00559317,122530.0,122520.0,1.42630232]
[1759565640546,0.1713985,122530.0,122520.0,0.94810367]
[1759565640777,0.1713985,122530.0,122520.0,1.35313957]
[1759565641135,0.1668285,122530.0,122520.0,1.35818957]
[1759565641368,0.1668285,122530.0,122520.0,1.43131232]
[1759565641573,0.1688085,122530.0,122520.0,1.42832232]
[1759565641751,0.1688085,122530.0,122520.0,1.35313957]
[1759565644638,0.25452056,122530.0,122520.0,0.93529]
[1759565644835,0.25452056,122530.0,122520.0,1.16545]
[1759565646808,0.25193056,122530.0,122520.0,1.16545]
[1759565647223,0.25452056,122530.0,122520.0,1.16545]
[1759565648845,0.25452056,122530.0,122520.0,0.82545]
[1759565651229,0.25193056,122530.0,122520.0,0.82545]
[1759565652006,0.25452056,122530.0,122520.0,0.82545]
[1759565652856,0.25193056,122530.0,122520.0,0.82751]
[1759565653071,0.25193056,122530.0,122520.0,0.82545]
[1759565653277,0.25193056,122530.0,122520.0,0.82751]
[1759565653471,0.25193056,122530.0,122520.0,0.82545]
[1759565653883,0.25452056,122530.0,122520.0,0.82545]
[1759565654497,0.25193056,122530.0,122520.0,0.82545]
[1759565655276,0.25193056,122530.0,122520.0,0.8305]
[1759565655480,0.25193056,122530.0,122520.0,0.82751]
[1759565655674,0.25193056,122530.0,122520.0,0.82545]
[1759565656345,0.24995056,122530.0,122520.0,0.99373865]
[1759565656957,0.25194056,122530.0,122520.0,0.99373865]
[1759565657185,0.24995056,122530.0,122520.0,0.99373865]
[1759565657372,0.24995056,122530.0,122520.0,0.8305]
[1759565657925,0.25193056,122530.0,122520.0,0.82751]
[1759565658740,0.24995056,122530.0,122520.0,0.8305]
[1759565659185,0.24995056,122530.0,122520.0,1.47298503]
[1759565659548,0.25193056,122530.0,122520.0,1.46999503]
[1759565660152,0.24995056,122530.0,122520.0,1.47298503]
[1759565660349,0.29583686,122530.0,122520.0,1.18719498]
[1759565660574,0.25452056,122530.0,122520.0,1.35880084]
[1759565660798,0.27901674,122530.0,122520.0,1.35880084]
[1759565661020,0.27901674,122530.0,122520.0,1.12868084]
[1759565661188,0.72058522,122530.0,122520.0,1.12868084]
[1759565661392,1.06058522,122530.0,122520.0,1.35880084]
[1759565661604,1.14479929,122530.0,122520.0,1.35880084]
[1759565663843,0.76527266,122530.0,122520.0,1.35880084]
[1759565664286,0.68105859,122530.0,122520.0,1.35880084]
[1759565667794,0.91121859,122530.0,122520.0,1.35880084]
[1759565672578,0.68105859,122530.0,122520.0,1.35880084]
[1759565672836,0.91121859,122530.0,122520.0,1.35880084]
[1759565674099,1.29074522,122530.0,122520.0,1.12868084]
[1759565674304,1.37495929,122530.0,122520.0,1.12868084]
[1759565675724,1.37595929,122530.0,122520.0,1.12868084]
[1759565675923,1.37295929,122530.0,122520.0,1.12868084]
[1759565676128,1.37295929,122530.0,122520.0,0.67547042]
[1759565676330,1.4855779,122530.0,122520.0,0.67547042]
[1759565676511,1.4855779,122530.0,122520.0,0.61819084]
[1759565677319,1.5157298,122530.0,122520.0,0.09840223]
[1759565677526,1.5157298,122530.0,122520.0,1e-08]
[1759565677723,1.6016098,122530.0,122520.0,1e-08]
[1759565677951,0.16323865,122520.0,122510.0,1e-08]
[1759565678255,0.71010141,122520.0,122510.0,1e-08]
[1759565678464,0.71209141,122520.0,122510.0,1e-08]
[1759565678677,0.75244013,122520.0,122510.0,1e-08]
[1759565678903,1.81255052,122520.0,122510.0,1e-08]
[1759565679111,1.91255052,122520.0,122510.0,1e-08]
[1759565679324,1.91355052,122520.0,122510.0,1e-08]
[1759565679504,1.53702389,122520.0,122510.0,1e-08]
[1759565679726,1.53602389,122520.0,122510.0,1e-08]
[1759565679934,1.30282389,122520.0,122510.0,1e-08]
[1759565680170,1.54402389,122520.0,122510.0,1e-08]
[1759565681597,1.54902389,122520.0,122510.0,1e-08]
[1759565684777,1.31882389,122520.0,122510.0,1e-08]
[1759565684987,1.54902389,122520.0,122510.0,1e-08]
[1759565687172,1.31882389,122520.0,122510.0,1e-08]
[1759565687326,1.54902389,122520.0,122510.0,1e-08]
[1759565687740,1.31882389,122520.0,122510.0,1e-08]
[1759565687953,1.54902389,122520.0,122510.0,1e-08]
[1759565690295,2.024285,122520.0,122510.0,1e-08]
[1759565690499,1.794085,122520.0,122510.0,1e-08]
[1759565690671,2.024285,122520.0,122510.0,1e-08]
[1759565691012,1.794085,122520.0,122510.0,1e-08]
[1759565691244,2.024285,122520.0,122510.0,1e-08]
[1759565696519,2.02429061,122520.0,122510.0,1e-08]
[1759565698732,2.01666818,122520.0,122510.0,1e-08]
[1759565699566,0.60325197,122510.0,122500.0,0.00040981]
[1759565699768,1.42818197,122510.0,122500.0,0.0004589]
[1759565699980,1.43273197,122510.0,122500.0,0.0004589]
[1759565700169,1.43273197,122510.0,122500.0,0.00066215]
[1759565700301,1.45723667,122510.0,122500.0,0.00066215]
[1759565700736,1.46323667,122510.0,122500.0,0.00066215]
[1759565701831,0.9306725,122490.0,122480.0,0.00081974]
[1759565702038,1.24399456,122490.0,122480.0,0.00086885]
[1759565702251,1.24854456,122490.0,122480.0,0.00086885]
[1759565702465,1.24854456,122490.0,122480.0,0.00127542]
[1759565702678,1.28119982,122490.0,122480.0,0.00127542]
[1759565703340,1.28119982,122490.0,122480.0,0.00427542]
[1759565703546,1.36541389,122490.0,122480.0,0.00427542]
[1759565704186,1.42701071,122490.0,122480.0,0.00427542]
[1759565705724,0.76941684,122490.0,122480.0,0.00427542]
[1759565705879,1.19681071,122490.0,122480.0,0.00427542]
[1759565706150,1.42705071,122490.0,122480.0,0.00427542]
[1759565706500,1.56196901,122490.0,122480.0,0.00427542]
[1759565706707,1.55937901,122490.0,122480.0,0.00427542]
[1759565706950,1.56196901,122490.0,122480.0,0.00427542]
[1759565707509,1.33172901,122490.0,122480.0,0.00427542]
[1759565707717,1.56196901,122490.0,122480.0,0.00427542]
[1759565713522,1.13457514,122490.0,122480.0,0.00427542]
[1759565714173,0.79457514,122490.0,122480.0,0.00427542]
[1759565714384,0.76191988,122490.0,122480.0,0.00427542]
[1759565715214,1.95670762,122490.0,122480.0,0.00427542]
[1759565715639,1.55382334,122490.0,122480.0,0.00427542]
[1759565715850,1.41890504,122490.0,122480.0,0.00427542]
[1759565716052,1.90145081,122490.0,122480.0,1e-08]
[1759565716185,2.00145081,122490.0,122480.0,1e-08]
[1759565716413,0.16331863,122460.0,122450.0,0.00040997]
[1759565716643,0.24644069,122460.0,122450.0,0.00090135]
[1759565716896,0.25099069,122460.0,122450.0,0.00090135]
[1759565717030,0.25099069,122460.0,122450.0,0.00151141]
[1759565717439,0.25099069,122460.0,122450.0,0.00351141]
[1759565718468,0.25099069,122460.0,122450.0,0.00751141]
[1759565719064,0.33520476,122460.0,122450.0,0.00751141]
[1759565720049,0.33520476,122460.0,122450.0,0.00551141]
[1759565720457,0.33520476,122460.0,122450.0,0.00751141]
[1759565720652,0.33520476,122460.0,122450.0,0.00351141]
[1759565721094,0.33520476,122460.0,122450.0,0.00551141]
[1759565721323,0.56544476,122460.0,122450.0,0.00351141]
[1759565721538,0.33520476,122460.0,122450.0,0.00351141]
[1759565721669,0.48123069,122460.0,122450.0,0.00351141]
[1759565721883,0.48123069,122460.0,122450.0,0.00151141]
[1759565727270,0.48127069,122460.0,122450.0,0.00151141]
[1759565727442,0.61618899,122460.0,122450.0,0.00151141]
[1759565727681,0.70040306,122460.0,122450.0,0.00151141]
[1759565730745,0.56548476,122460.0,122450.0,0.00151141]
[1759565734952,0.24644069,122460.0,122450.0,0.00367141]
[1759565735154,0.47672069,122460.0,122450.0,0.00680141]
[1759565735560,0.47869069,122460.0,122450.0,0.00151141]
[1759565735764,0.24903069,122460.0,122450.0,0.00367141]
[1759565736009,0.24841069,122460.0,122450.0,0.00367141]
[1759565736211,0.24841069,122460.0,122450.0,0.00151141]
[1759565736911,0.24841069,122460.0,122450.0,0.00367141]
[1759565737300,0.24841069,122460.0,122450.0,0.00151141]
[1759565737504,0.25100069,122460.0,122450.0,0.00151141]
[1759565738136,0.27551384,122460.0,122450.0,0.00151141]
[1759565738345,0.27095384,122460.0,122450.0,0.00680141]
[1759565738947,0.27095384,122460.0,122450.0,0.00151141]
[1759565738948,0.27292384,122460.0,122450.0,0.00151141]
[1759565739471,0.27551384,122460.0,122450.0,0.00151141]
[1759565741487,0.24644069,122460.0,122450.0,0.00680141]
[1759565741688,0.24644069,122460.0,122450.0,0.05071233]
[1759565742419,0.24644069,122460.0,122450.0,0.04758233]
[1759565743637,0.24644069,122460.0,122450.0,0.04542233]
[1759565744510,0.24644069,122460.0,122450.0,0.04758233]
[1759565744703,0.24644069,122460.0,122450.0,0.05071233]
[1759565745672,0.24644069,122460.0,122450.0,0.04758233]
[1759565746077,0.24644069,122460.0,122450.0,0.04542233]
[1759565746680,0.24644069,122460.0,122450.0,0.05071233]
[1759565746871,0.24644069,122460.0,122450.0,0.04758233]
[1759565747218,0.24841069,122460.0,122450.0,0.04758233]
[1759565747524,0.24841069,122460.0,122450.0,0.04542233]
[1759565749319,0.24841069,122460.0,122450.0,0.04758233]
[1759565749517,0.24644069,122460.0,122450.0,0.04758233]
[1759565749947,0.24841069,122460.0,122450.0,0.04758233]
[1759565754050,0.24841069,122460.0,122450.0,0.04542233]
[1759565754207,0.24841069,122460.0,122450.0,0.27570233]
[1759565754725,0.24841069,122460.0,122450.0,0.27786233]
[1759565755132,0.24841069,122460.0,122450.0,0.27570233]
[1759565755557,0.24841069,122460.0,122450.0,0.27786233]
[1759565755713,0.24841069,122460.0,122450.0,0.27570233]
[1759565756924,0.25100069,122460.0,122450.0,0.27570233]
[1759565758167,0.24841069,122460.0,122450.0,0.27786233]
[1759565758568,0.24841069,122460.0,122450.0,0.04758233]
[1759565758732,0.24841069,122460.0,122450.0,0.27570233]
[1759565759479,0.25100069,122460.0,122450.0,0.27570233]
[1759565760065,0.24841069,122460.0,122450.0,0.27570233]
[1759565760719,0.25100069,122460.0,122450.0,0.27570233]
[1759565760863,0.24841069,122460.0,122450.0,0.27771233]
[1759565761086,0.24644069,122460.0,122450.0,0.28078233]
[1759565761496,0.24842069,122460.0,122450.0,0.28078233]
[1759565761699,0.24842069,122460.0,122450.0,0.27771233]
[1759565761904,0.24842069,122460.0,122450.0,0.27570233]
[1759565764109,0.24842069,122460.0,122450.0,0.04542233]
[1759565764334,0.25101069,122460.0,122450.0,0.27570233]
[1759565765287,0.24842069,122460.0,122450.0,0.27771233]
[1759565765696,0.24842069,122460.0,122450.0,0.27570233]
[1759565766736,0.24842069,122460.0,122450.0,0.27771233]
[1759565766917,0.24842069,122460.0,122450.0,0.28078233]
[1759565769194,0.24842069,122460.0,122450.0,0.27771233]
[1759565770010,0.24644069,122460.0,122450.0,0.28078233]
[1759565770626,0.24843069,122460.0,122450.0,0.28078233]
[1759565771436,0.24843069,122460.0,122450.0,0.27771233]
[1759565771951,0.24644069,122460.0,122450.0,0.28078233]
[1759565773968,0.24644069,122460.0,122450.0,0.05050233]
[1759565774259,0.16333197,122450.0,122440.0,0.08795]
[1759565774504,0.24645403,122450.0,122440.0,0.09000913]
[1759565775321,0.24645403,122450.0,122440.0,0.32024913]
[1759565775707,0.24645403,122450.0,122440.0,0.23536913]
[1759565775906,0.30678486,122450.0,122440.0,0.32024913]
[1759565776107,0.30678486,122450.0,122440.0,0.32224913]
[1759565776464,0.30678486,122450.0,122440.0,0.32424913]
[1759565776666,0.30678486,122450.0,122440.0,0.00912913]
[1759565776879,0.31201486,122450.0,122440.0,0.31424913]
[1759565777513,0.31201486,122450.0,122440.0,0.00404913]
[1759565777718,0.31201486,122450.0,122440.0,0.16736913]
[1759565779349,0.31201486,122450.0,122440.0,0.23428913]
[1759565779969,0.31201486,122450.0,122440.0,0.23449253]
[1759565781159,0.31201486,122450.0,122440.0,0.00425253]
[1759565781361,0.31201486,122450.0,122440.0,0.23449253]
[1759565781771,0.31201486,122450.0,122440.0,0.00425253]
[1759565781969,0.31201486,122450.0,122440.0,0.23449253]